bitfinex-derivatives/quotes_BTCF0:USTF0_20250101
["timestamp","ask_amount","ask_price","bid_price","bid_amount"]
[1735725877576,0.3922,93586.0,93572.0,0.053537]
[1735725877577,0.053534,93578.0,93572.0,0.053537]
[1735725878276,0.053534,93578.0,93561.0,0.3608]
[1735725878277,0.053534,93578.0,93562.0,0.053542]
[1735725878476,0.053534,93578.0,93572.0,0.053537]
[1735725879171,0.00360364,93577.0,93574.0,0.053536]
[1735725879879,0.05354,93568.0,93550.0,0.3608]
[1735725880076,0.05354,93568.0,93563.0,0.053542]
[1735725880465,0.05354,93568.0,93565.0,0.053541]
[1735725881080,0.3608,93576.0,93554.0,0.032]
[1735725881376,0.053539,93569.0,93561.0,0.053543]
[1735725881880,0.05454,93568.0,93561.0,0.053543]
[1735725882475,0.05354,93568.0,93561.0,0.053543]
[1735725882675,0.05354,93568.0,93561.0,0.054543]
[1735725882875,0.05354,93567.0,93561.0,0.054543]
[1735725883074,0.05354,93567.0,93563.0,0.053542]
[1735725884982,0.05454,93567.0,93563.0,0.053542]
[1735725885886,0.07455226,93567.0,93563.0,0.053542]
[1735725887079,0.05454,93567.0,93563.0,0.053542]
[1735725888492,0.053541,93566.0,93563.0,0.053542]
[1735725889680,0.053541,93565.0,93557.0,0.053545]
[1735725889886,0.053541,93565.0,93555.0,0.3608]
[1735725890987,0.053541,93565.0,93559.0,0.053544]
[1735725891386,0.053546,93556.0,93555.0,0.3628]
[1735725901484,0.0206788,93565.0,93555.0,0.3628]
[1735725901690,0.3608,93566.0,93561.0,0.053543]
[1735725901987,0.3608,93566.0,93565.0,0.053541]
[1735725902196,0.05354,93567.0,93565.0,0.053541]
[1735725902701,0.05354,93567.0,93566.0,0.05354]
[1735725904595,0.07547306,93567.0,93566.0,0.05354]
[1735725906199,0.02193306,93567.0,93566.0,0.05354]
[1735725906502,0.002,93567.0,93566.0,0.05354]
[1735725907501,0.3608,93575.0,93569.0,0.053538]
[1735725907698,0.37963699,93575.0,93570.0,0.0308]
[1735725907903,0.053536,93574.0,93570.0,0.0308]
[1735725908195,0.053537,93572.0,93570.0,0.0308]
[1735725910503,0.055537,93572.0,93570.0,0.0308]
[1735725916802,0.053539,93571.0,93570.0,0.0308]
[1735725918795,0.055539,93571.0,93570.0,0.0308]
[1735725923408,0.002,93571.0,93560.0,0.07215148]
[1735725923599,0.002,93571.0,93556.0,0.0647]
[1735725923600,0.053544,93563.0,93561.0,0.0313]
[1735725925809,0.054544,93563.0,93561.0,0.0313]
[1735725929612,0.26516835,93575.0,93561.0,0.0313]
[1735725929904,0.053542,93566.0,93563.0,0.3608]
[1735725931806,0.054542,93566.0,93563.0,0.3608]
[1735725933898,0.001,93566.0,93563.0,0.3608]
[1735725934101,0.001,93566.0,93563.0,0.414344]
[1735725934707,0.001,93566.0,93565.0,0.053543]
[1735725935897,0.053535,93580.0,93572.0,0.053539]
[1735725936103,0.053535,93579.0,93573.0,0.0635]
[1735725937008,0.053531,93585.0,93573.0,0.0325]
[1735725937202,0.053534,93580.0,93579.0,0.3608]
[1735725937806,0.056534,93580.0,93579.0,0.3608]
[1735725939109,0.053534,93580.0,93579.0,0.3608]
[1735725939307,0.057534,93580.0,93579.0,0.3618]
[1735725940411,0.004,93580.0,93579.0,0.3618]
[1735725940716,0.004,93580.0,93579.0,0.33433047]
[1735725943814,0.004,93580.0,93579.0,0.36703047]
[1735725946822,0.004,93580.0,93579.0,0.0665]
[1735725947020,0.004,93580.0,93579.0,0.0338]
[1735725947817,0.004,93580.0,93579.0,0.001]
[1735725948418,0.02065519,93580.0,93579.0,0.001]
[1735725950816,0.02065519,93580.0,93571.0,0.3608]
[1735725951014,0.053536,93577.0,93571.0,0.3608]
[1735725951413,0.053536,93577.0,93570.0,0.07215148]
[1735725952527,0.053536,93577.0,93570.0,0.43295148]
[1735725953916,0.055536,93577.0,93570.0,0.43295148]
[1735725963436,0.053536,93576.0,93570.0,0.43295148]
[1735725963833,0.053539,93571.0,93570.0,0.3608]
[1735725964834,0.05354,93569.0,93568.0,0.0327]
[1735725967441,0.07064468,93569.0,93568.0,0.0327]
[1735725967844,0.07264468,93569.0,93568.0,0.0327]
[1735725971339,0.07264468,93569.0,93562.0,0.414344]
[1735725971340,0.053541,93568.0,93562.0,0.414344]
[1735725971646,0.053542,93566.0,93562.0,0.3608]
[1735725972850,0.001,93568.0,93562.0,0.3608]
[1735725973351,0.001,93566.0,93563.0,0.053543]
[1735725974049,0.001,93568.0,93563.0,0.053543]
[1735725975744,0.001,93566.0,93563.0,0.053543]
[1735725976547,0.053539,93571.0,93562.0,0.3608]
[1735725976750,0.001,93568.0,93564.0,0.053543]
[1735725977247,0.053539,93571.0,93564.0,0.053543]
[1735725977449,0.001,93566.0,93564.0,0.053543]
[1735725979450,0.001,93568.0,93564.0,0.053543]
[1735725980242,0.05354,93570.0,93564.0,0.053543]
[1735725980243,0.001,93566.0,93564.0,0.053543]
[1735725982552,0.054541,93568.0,93564.0,0.053543]
[1735725982749,0.054541,93568.0,93565.0,0.053543]
[1735725983253,0.001,93566.0,93565.0,0.053543]
[1735725984154,0.001,93568.0,93566.0,0.053542]
[1735725985647,0.05354,93570.0,93566.0,0.053542]
[1735725986563,0.002,93568.0,93566.0,0.053542]
[1735725987362,0.05354,93569.0,93566.0,0.053542]
[1735725987951,0.002,93570.0,93568.0,0.053541]
[1735725988959,0.053538,93573.0,93568.0,0.053541]
[1735725989657,0.002,93570.0,93568.0,0.053541]
[1735725991064,0.055538,93573.0,93568.0,0.053541]
[1735725991764,0.053539,93571.0,93568.0,0.053541]
[1735725992366,0.053541,93568.0,93563.0,0.0329]
[1735725992553,0.053541,93568.0,93564.0,0.053543]
[1735725993070,0.053543,93564.0,93562.0,0.3608]
[1735725993371,0.053547,93558.0,93556.0,0.0311]
[1735725994372,0.3608,93563.0,93556.0,0.0311]
[1735725994565,0.3608,93563.0,93561.0,0.053545]
[1735725994863,0.001,93564.0,93563.0,0.053544]
[1735725995869,0.05354,93571.0,93567.0,0.053541]
[1735725996664,0.02576468,93572.0,93567.0,0.053541]
[1735725996966,0.3608,93577.0,93567.0,0.053541]
[1735725996967,0.05354,93570.0,93567.0,0.053541]
[1735725998356,0.001,93571.0,93567.0,0.053541]
[1735725998562,0.05354,93569.0,93567.0,0.053541]
[1735725999572,0.41434,93569.0,93567.0,0.053541]
[1735725999773,0.05454,93569.0,93567.0,0.053541]
[1735726001475,0.05454,93569.0,93562.0,0.0327]
[1735726001476,0.053541,93568.0,93562.0,0.0327]
[1735726001863,0.001,93569.0,93560.0,0.3614]
[1735726002063,0.053544,93563.0,93560.0,0.3608]
[1735726003275,0.3608,93569.0,93560.0,0.3608]
[1735726003670,0.053544,93564.0,93560.0,0.3608]
[1735726004772,0.053544,93563.0,93560.0,0.3608]
[1735726004968,0.053545,93562.0,93560.0,0.3608]
[1735726009370,0.053545,93562.0,93557.0,0.084647]
[1735726011376,0.07999795,93562.0,93557.0,0.084647]
[1735726018779,0.02645295,93562.0,93557.0,0.0311]
[1735726018986,0.02645295,93562.0,93545.0,0.3624033]
[1735726018987,0.053551,93550.0,93546.0,0.0634]
[1735726019785,0.053551,93550.0,93545.0,0.3624033]
[1735726020175,0.053551,93550.0,93549.0,0.3618]
[1735726021090,0.053551,93550.0,93549.0,0.3648]
[1735726026681,0.07985588,93550.0,93549.0,0.3648]
[1735726028090,0.07985588,93550.0,93549.0,0.004]
[1735726029387,0.3608,93561.0,93549.0,0.004]
[1735726029593,0.3608,93561.0,93560.0,0.053545]
[1735726031293,0.053539,93572.0,93563.0,0.053543]
[1735726031294,0.05354,93571.0,93563.0,0.053543]
[1735726031892,0.05354,93571.0,93564.0,0.053543]
[1735726032487,0.05354,93571.0,93565.0,0.053542]
[1735726032795,0.05354,93571.0,93566.0,0.053542]
[1735726032995,0.05554,93571.0,93566.0,0.053542]
[1735726034198,0.05554,93571.0,93560.0,0.10995193]
[1735726034394,0.05554,93571.0,93567.0,0.053541]
[1735726034898,0.05354,93569.0,93567.0,0.053541]
[1735726037896,0.05554,93569.0,93567.0,0.053541]
[1735726038292,0.053543,93565.0,93561.0,0.053545]
[1735726038591,0.053543,93565.0,93562.0,0.053544]
[1735726038792,0.053543,93565.0,93563.0,0.053543]
[1735726039497,0.054543,93565.0,93563.0,0.053543]
[1735726040786,0.054543,93565.0,93557.0,0.0312]
[1735726040787,0.002,93565.0,93557.0,0.0312]
[1735726040984,0.053547,93558.0,93557.0,0.0312]
[1735726041383,0.002,93565.0,93552.0,0.05355]
[1735726041587,0.002,93565.0,93548.0,0.053552]
[1735726041588,0.053549,93554.0,93548.0,0.053552]
[1735726041783,0.3608,93559.0,93548.0,0.053552]
[1735726041994,0.053547,93558.0,93547.0,0.0308]
[1735726042189,0.05355,93553.0,93547.0,0.0308]
[1735726042391,0.053552,93549.0,93547.0,0.0308]
[1735726043299,0.053552,93549.0,93547.0,0.0348]
[1735726043890,0.053552,93549.0,93548.0,0.001]
[1735726044600,0.053552,93549.0,93547.0,0.0358]
[1735726045389,0.053552,93549.0,93548.0,0.001]
[1735726045899,0.053552,93549.0,93548.0,0.005]
[1735726046394,0.07481179,93549.0,93548.0,0.005]
[1735726047597,0.07481179,93549.0,93548.0,0.004]
[1735726048395,0.07481179,93549.0,93548.0,0.005]
[1735726051297,0.3608,93559.0,93548.0,0.005]
[1735726051495,0.3608,93559.0,93552.0,0.05355]
[1735726052002,0.03330354,93568.0,93552.0,0.05355]
[1735726052003,0.053547,93557.0,93552.0,0.05355]
[1735726052198,0.053544,93563.0,93558.0,0.053546]
[1735726052402,0.053544,93563.0,93554.0,0.3608]
[1735726052403,0.02194154,93568.0,93555.0,0.0301]
[1735726052603,0.053542,93567.0,93555.0,0.0301]
[1735726054006,0.053542,93567.0,93561.0,0.053545]
[1735726054306,0.02194154,93568.0,93561.0,0.053545]
[1735726054499,0.053542,93566.0,93561.0,0.053545]
[1735726054699,0.053542,93566.0,93562.0,0.053544]
[1735726055791,0.053543,93565.0,93562.0,0.053544]
[1735726055992,0.3608,93563.0,93562.0,0.053544]
[1735726057703,0.001,93563.0,93562.0,0.053544]
[1735726057903,0.415344,93563.0,93562.0,0.053544]
[1735726059709,0.415344,93563.0,93555.0,0.0301]
[1735726059710,0.3618,93563.0,93555.0,0.0301]
[1735726059910,0.3618,93563.0,93556.0,0.053547]
[1735726060113,0.053547,93557.0,93556.0,0.053547]
[1735726061398,0.3608,93563.0,93548.0,0.0321]
[1735726061598,0.053548,93556.0,93548.0,0.0321]
[1735726061804,0.053548,93556.0,93553.0,0.053549]
[1735726062104,0.053548,93556.0,93554.0,0.3608]
[1735726063913,0.053548,93556.0,93554.0,0.3628]
[1735726065313,0.053548,93556.0,93554.0,0.3608]
[1735726065615,0.053548,93556.0,93554.0,0.3618]
[1735726066812,0.053548,93556.0,93554.0,0.001]
[1735726067011,0.053548,93556.0,93554.0,0.002]
[1735726068701,0.053548,93556.0,93555.0,0.3608]
[1735726069912,0.053542,93567.0,93560.0,0.053545]
[1735726070209,0.053542,93567.0,93561.0,0.0301]
[1735726070816,0.053542,93567.0,93562.0,0.053544]
[1735726071018,0.054542,93567.0,93562.0,0.053544]
[1735726071811,0.054542,93567.0,93563.0,0.053544]
[1735726072523,0.053543,93565.0,93563.0,0.053544]
[1735726074425,0.055543,93565.0,93563.0,0.053544]
[1735726075120,0.002,93565.0,93564.0,0.053543]
[1735726076424,0.02207563,93568.0,93567.0,0.053541]
[1735726077613,0.02407563,93568.0,93567.0,0.053541]
[1735726080917,0.02407563,93568.0,93567.0,0.02618416]
[1735726082223,0.07761663,93568.0,93567.0,0.02618416]
[1735726089527,0.053544,93563.0,93562.0,0.053544]
[1735726090825,0.02407563,93568.0,93561.0,0.0301]
[1735726090826,0.053544,93562.0,93561.0,0.0301]
[1735726092020,0.05355,93554.0,93553.0,0.053549]
[1735726092334,0.05355,93553.0,93544.0,0.0302]
[1735726093330,0.05355,93553.0,93544.0,0.0372]
[1735726093535,0.05355,93552.0,93549.0,0.053551]
[1735726094022,0.054544,93562.0,93544.0,0.0372]
[1735726094222,0.053552,93550.0,93544.0,0.0372]
[1735726094726,0.053552,93550.0,93546.0,0.053553]
[1735726095933,0.053552,93550.0,93547.0,0.053553]
[1735726097238,0.053552,93550.0,93547.0,0.055553]
[1735726098343,0.053552,93550.0,93547.0,0.059553]
[1735726099836,0.07198255,93550.0,93547.0,0.059553]
[1735726101438,0.053552,93548.0,93547.0,0.006]
[1735726105836,0.26590567,93554.0,93547.0,0.006]
[1735726106041,0.053552,93548.0,93547.0,0.006]
[1735726107760,0.053552,93548.0,93547.0,0.004]
[1735726108050,0.053552,93548.0,93547.0,0.006]
[1735726108452,0.053552,93548.0,93547.0,0.002]
[1735726108640,0.053552,93548.0,93547.0,0.006]
[1735726109047,0.053552,93548.0,93547.0,0.002]
[1735726109355,0.053552,93548.0,93547.0,0.006]
[1735726121356,0.053552,93548.0,93547.0,0.004]
[1735726121562,0.053552,93548.0,93547.0,0.00291519]
[1735726127461,0.33699821,93554.0,93547.0,0.00291519]
[1735726127762,0.33699821,93554.0,93548.0,0.053552]
[1735726128467,0.053551,93551.0,93548.0,0.053552]
[1735726130367,0.053551,93551.0,93548.0,0.057552]
[1735726130860,0.053551,93551.0,93548.0,0.054552]
[1735726131168,0.053551,93551.0,93548.0,0.058552]
[1735726134655,0.053551,93550.0,93548.0,0.058552]
[1735726138165,0.07045493,93550.0,93548.0,0.058552]
[1735726143780,0.01690393,93550.0,93548.0,0.058552]
[1735726143982,0.053552,93549.0,93548.0,0.058552]
[1735726145581,0.053552,93549.0,93548.0,0.057552]
[1735726145882,0.053552,93549.0,93548.0,0.058552]
[1735726148881,0.053552,93549.0,93548.0,0.005]
[1735726154788,0.07053239,93549.0,93548.0,0.005]
[1735726155091,0.07053239,93549.0,93548.0,0.00245645]
[1735726167805,0.07053239,93549.0,93548.0,0.00121264]
[1735726187609,0.07053239,93549.0,93548.0,0.00055956]
[1735726190220,0.43133239,93549.0,93548.0,0.00055956]
[1735726193716,0.053561,93533.0,93532.0,0.053561]
[1735726194815,0.053561,93533.0,93532.0,0.057561]
[1735726195407,0.053561,93533.0,93532.0,0.013]
[1735726196106,0.053561,93533.0,93525.0,0.086265]
[1735726196107,0.053564,93527.0,93525.0,0.086265]
[1735726197215,0.053564,93527.0,93525.0,0.0327]
[1735726197417,0.053576,93507.0,93506.0,0.00160393]
[1735726197619,0.048576,93507.0,93506.0,0.00160393]
[1735726198616,0.040576,93507.0,93506.0,0.01060393]
[1735726199323,0.042576,93507.0,93506.0,0.01060393]
[1735726199721,0.0617074,93507.0,93506.0,0.01060393]
[1735726201120,0.0221314,93507.0,93506.0,0.01060393]
[1735726201328,0.004,93507.0,93506.0,0.00160393]
[1735726206125,0.11972742,93507.0,93485.0,0.053588]
[1735726206322,0.053586,93489.0,93488.0,0.0609]
[1735726207024,0.053583,93495.0,93489.0,0.053586]
[1735726209025,0.053583,93495.0,93489.0,0.055586]
[1735726209226,0.054583,93495.0,93489.0,0.060586]
[1735726210419,0.053585,93491.0,93489.0,0.007]
[1735726211421,0.001,93495.0,93489.0,0.060586]
[1735726211627,0.001,93495.0,93490.0,0.053585]
[1735726211924,0.053582,93496.0,93490.0,0.053585]
[1735726212129,0.001,93491.0,93490.0,0.053585]
[1735726213028,0.001,93495.0,93492.0,0.053584]
[1735726215028,0.053582,93496.0,93493.0,0.053584]
[1735726216228,0.01963768,93500.0,93493.0,0.054584]
[1735726216424,0.414379,93502.0,93496.0,0.053582]
[1735726217432,0.3608,93502.0,93500.0,0.05358]
[1735726218120,0.001,93502.0,93500.0,0.05358]
[1735726218328,0.002,93502.0,93500.0,0.05358]
[1735726218724,0.001,93502.0,93500.0,0.05358]
[1735726218920,0.004,93502.0,93500.0,0.05358]
[1735726219631,0.005,93502.0,93500.0,0.05358]
[1735726221034,0.003,93502.0,93500.0,0.05358]
[1735726221232,0.004,93502.0,93500.0,0.05358]
[1735726221736,0.057579,93502.0,93500.0,0.05358]
[1735726221938,0.055579,93502.0,93500.0,0.05358]
[1735726222539,0.054579,93502.0,93500.0,0.05358]
[1735726222738,0.055579,93502.0,93500.0,0.05358]
[1735726223134,0.054579,93502.0,93500.0,0.05358]
[1735726223434,0.056579,93502.0,93500.0,0.05358]
[1735726226839,0.056579,93502.0,93499.0,0.3608]
[1735726226840,0.05358,93500.0,93499.0,0.3608]
[1735726228040,0.05458,93500.0,93499.0,0.3608]
[1735726228644,0.05558,93500.0,93499.0,0.3608]
[1735726231441,0.05558,93500.0,93499.0,0.3108]
[1735726231851,0.053587,93488.0,93487.0,0.3608]
[1735726233249,0.053587,93488.0,93487.0,0.3618]
[1735726233440,0.054587,93488.0,93487.0,0.3658]
[1735726235247,0.053587,93488.0,93487.0,0.3658]
[1735726236450,0.06984261,93488.0,93487.0,0.3658]
[1735726242362,0.053587,93488.0,93487.0,0.3658]
[1735726245757,0.01607884,93490.0,93487.0,0.3658]
[1735726245959,0.053583,93494.0,93487.0,0.3658]
[1735726246460,0.053585,93492.0,93487.0,0.3658]
[1735726247754,0.053585,93492.0,93487.0,0.3648]
[1735726248057,0.053585,93492.0,93487.0,0.3658]
[1735726248648,0.053585,93492.0,93487.0,0.3618]
[1735726248862,0.053585,93492.0,93487.0,0.3658]
[1735726249160,0.053585,93492.0,93488.0,0.053587]
[1735726249656,0.054585,93492.0,93488.0,0.053587]
[1735726254465,0.053585,93491.0,93488.0,0.053587]
[1735726255767,0.054585,93491.0,93488.0,0.053587]
[1735726259566,0.001,93491.0,93487.0,0.3608]
[1735726259976,0.053586,93489.0,93487.0,0.3608]
[1735726260564,0.053587,93488.0,93487.0,0.3608]
[1735726263878,0.054587,93488.0,93487.0,0.3608]
[1735726266771,0.001,93488.0,93478.0,0.3608]
[1735726266977,0.053592,93480.0,93478.0,0.3608]
[1735726267978,0.053592,93480.0,93478.0,0.3618]
[1735726268271,0.054592,93480.0,93478.0,0.3658]
[1735726271990,0.053592,93479.0,93478.0,0.3658]
[1735726273388,0.054592,93479.0,93478.0,0.3658]
[1735726279180,0.054592,93479.0,93478.0,0.005]
[1735726280481,0.053592,93479.0,93478.0,0.005]
[1735726280685,0.053596,93471.0,93470.0,0.3608]
[1735726281082,0.052596,93471.0,93470.0,0.3608]
[1735726281283,0.14431984,93480.0,93466.0,0.00923521]
[1735726281492,0.053599,93467.0,93466.0,0.00923521]
[1735726282386,0.048599,93467.0,93466.0,0.00923521]
[1735726282986,0.045599,93467.0,93466.0,0.00923521]
[1735726283894,0.047599,93467.0,93466.0,0.01023521]
[1735726284596,0.048599,93467.0,93466.0,0.00923521]
[1735726286387,0.0634905,93467.0,93466.0,0.00923521]
[1735726289790,0.003,93467.0,93466.0,0.053599]
[1735726289997,0.053589,93484.0,93483.0,0.053589]
[1735726291287,0.05359,93483.0,93478.0,0.053592]
[1735726291589,0.05359,93482.0,93479.0,0.0312]
[1735726291788,0.053591,93481.0,93479.0,0.0633]
[1735726293685,0.055591,93481.0,93479.0,0.0633]
[1735726294294,0.059591,93481.0,93479.0,0.0633]
[1735726295101,0.058591,93481.0,93479.0,0.0633]
[1735726296403,0.056591,93481.0,93479.0,0.0633]
[1735726296603,0.058591,93481.0,93479.0,0.0633]
[1735726297301,0.059591,93481.0,93479.0,0.0633]
[1735726308311,0.01516379,93487.0,93479.0,0.0633]
[1735726308514,0.05359,93482.0,93481.0,0.3608]
[1735726310807,0.05759,93482.0,93481.0,0.3608]
[1735726311411,0.06059,93482.0,93481.0,0.3608]
[1735726313716,0.37503384,93495.0,93481.0,0.3608]
[1735726313911,0.053584,93493.0,93487.0,0.053587]
[1735726314106,0.37503384,93495.0,93487.0,0.053587]
[1735726314305,0.053585,93491.0,93487.0,0.053587]
[1735726315206,0.053586,93490.0,93487.0,0.053587]
[1735726316615,0.053586,93490.0,93487.0,0.054587]
[1735726317008,0.053586,93490.0,93488.0,0.0316]
[1735726317414,0.059586,93490.0,93488.0,0.0316]
[1735726318604,0.062586,93490.0,93488.0,0.0316]
[1735726319416,0.063586,93490.0,93488.0,0.0326]
[1735726320918,0.063586,93490.0,93488.0,0.001]
[1735726323011,0.053586,93489.0,93488.0,0.001]
[1735726324418,0.003,93490.0,93481.0,0.3608]
[1735726324618,0.05259,93482.0,93481.0,0.3608]
[1735726326120,0.05459,93482.0,93481.0,0.3608]
[1735726327513,0.05859,93482.0,93481.0,0.3608]
[1735726332626,0.05859,93482.0,93481.0,0.414391]
[1735726332627,0.006,93482.0,93481.0,0.414391]
[1735726333525,0.004,93482.0,93481.0,0.414391]
[1735726333731,0.006,93482.0,93481.0,0.414391]
[1735726334122,0.004,93482.0,93481.0,0.414391]
[1735726335429,0.003,93482.0,93481.0,0.414391]
[1735726337631,0.001,93482.0,93481.0,0.415391]
[1735726338224,0.053587,93488.0,93481.0,0.3618]
[1735726338428,0.053587,93488.0,93483.0,0.053589]
[1735726339931,0.055587,93488.0,93483.0,0.053589]
[1735726342831,0.056587,93488.0,93483.0,0.053589]
[1735726344040,0.053587,93487.0,93483.0,0.053589]
[1735726345237,0.054587,93487.0,93483.0,0.053589]
[1735726345843,0.056587,93487.0,93483.0,0.053589]
[1735726346744,0.003,93487.0,93481.0,0.3608]
[1735726346955,0.05359,93482.0,93481.0,0.3608]
[1735726347150,0.003,93487.0,93481.0,0.3608]
[1735726347653,0.003,93487.0,93482.0,0.0626]
[1735726348238,0.003,93487.0,93483.0,0.053589]
[1735726348447,0.053589,93485.0,93482.0,0.0626]
[1735726349637,0.054589,93485.0,93482.0,0.0626]
[1735726350859,0.055589,93485.0,93482.0,0.0626]
[1735726357165,0.055589,93485.0,93481.0,0.36136]
[1735726357166,0.053589,93484.0,93481.0,0.36136]
[1735726357366,0.053589,93484.0,93481.0,0.3608]
[1735726358272,0.054589,93484.0,93481.0,0.3608]
[1735726358970,0.055589,93484.0,93481.0,0.3608]
[1735726360363,0.06852304,93484.0,93481.0,0.3608]
[1735726360971,0.01493404,93484.0,93481.0,0.3608]
[1735726363071,0.06852304,93484.0,93481.0,0.3608]
[1735726363265,0.0323,93483.0,93481.0,0.3608]
[1735726364066,0.05359,93482.0,93481.0,0.3608]
[1735726364267,0.08419,93482.0,93481.0,0.3608]
[1735726364571,0.053593,93478.0,93470.0,0.07215992]
[1735726365273,0.0306,93482.0,93470.0,0.07215992]
[1735726365576,0.0306,93482.0,93478.0,0.3608]
[1735726366364,0.08419,93482.0,93478.0,0.3608]
[1735726367978,0.08919,93482.0,93478.0,0.3608]
[1735726368360,0.053592,93480.0,93478.0,0.3608]
[1735726369564,0.058592,93480.0,93478.0,0.3608]
[1735726370275,0.061592,93480.0,93478.0,0.3608]
[1735726373276,0.008,93480.0,93478.0,0.414392]
[1735726374665,0.008,93480.0,93479.0,0.053592]
[1735726376078,0.003,93480.0,93479.0,0.053592]
[1735726376278,0.009,93480.0,93479.0,0.053592]
[1735726379874,0.006,93480.0,93479.0,0.053592]
[1735726380074,0.008,93480.0,93479.0,0.053592]
[1735726381271,0.006,93480.0,93477.0,0.3608]
[1735726381477,0.057592,93480.0,93473.0,0.053595]
[1735726381778,0.059592,93480.0,93473.0,0.053595]
[1735726382473,0.058592,93480.0,93473.0,0.053595]
[1735726384077,0.056592,93480.0,93473.0,0.053595]
[1735726384277,0.056592,93480.0,93471.0,0.0617]
[1735726384278,0.003,93480.0,93471.0,0.0301]
[1735726384479,0.053595,93475.0,93469.0,0.414397]
[1735726384784,0.053595,93474.0,93469.0,0.414397]
[1735726385778,0.053595,93474.0,93469.0,0.415397]
[1735726386788,0.414397,93470.0,93469.0,0.001]
[1735726387271,0.053601,93463.0,93458.0,0.3608]
[1735726387475,0.052601,93463.0,93458.0,0.3608]
[1735726387883,0.052601,93463.0,93453.0,0.053607]
[1735726388782,0.052601,93463.0,93462.0,0.00460455]
[1735726389777,0.052601,93463.0,93462.0,0.003]
[1735726390971,0.053607,93453.0,93450.0,0.3608]
[1735726392179,0.054607,93453.0,93450.0,0.3618]
[1735726392379,0.001,93453.0,93450.0,0.415408]
[1735726393680,0.001,93453.0,93450.0,0.416408]
[1735726396785,0.001,93453.0,93450.0,0.3628]
[1735726399988,0.001,93453.0,93450.0,0.002]
[1735726402282,0.001,93453.0,93450.0,0.001]
[1735726402482,0.001,93453.0,93449.0,0.415009]
[1735726402677,0.001,93453.0,93450.0,0.002]
[1735726403384,0.001,93453.0,93450.0,0.001]
[1735726403989,0.053606,93454.0,93450.0,0.005]
[1735726405178,0.053606,93454.0,93450.0,0.057608]
[1735726405384,0.053606,93454.0,93450.0,0.056608]
[1735726405580,0.053606,93454.0,93450.0,0.057608]
[1735726411586,0.01289896,93455.0,93450.0,0.004]
[1735726411786,0.053608,93451.0,93450.0,0.004]
[1735726412792,0.053608,93451.0,93450.0,0.005]
[1735726414688,0.053608,93451.0,93450.0,0.004]
[1735726415288,0.053608,93451.0,93450.0,0.003]
[1735726415485,0.053608,93451.0,93450.0,0.001]
[1735726415683,0.056608,93451.0,93450.0,0.001]
[1735726416091,0.056608,93451.0,93447.0,0.05361]
[1735726416390,0.005,93451.0,93443.0,0.0651]
[1735726416591,0.05361,93449.0,93444.0,0.053612]
[1735726416992,0.05361,93449.0,93445.0,0.053611]
[1735726417198,0.005,93451.0,93440.0,0.3608]
[1735726417391,0.053613,93443.0,93438.0,0.053615]
[1735726417590,0.053613,93443.0,93440.0,0.3608]
[1735726418001,0.053613,93443.0,93440.0,0.053614]
[1735726418507,0.053613,93443.0,93432.0,0.3608]
[1735726418800,0.053613,93443.0,93441.0,0.053614]
[1735726419501,0.002,93443.0,93440.0,0.001]
[1735726419700,0.053614,93441.0,93440.0,0.001]
[1735726421404,0.002,93443.0,93432.0,0.3608]
[1735726421593,0.002,93443.0,93433.0,0.21781399]
[1735726421594,0.053617,93435.0,93433.0,0.21781399]
[1735726421795,0.053618,93434.0,93433.0,0.16419599]
[1735726423505,0.053618,93434.0,93432.0,0.3608]
[1735726423897,0.053618,93434.0,93430.0,0.05362]
[1735726424101,0.053619,93432.0,93430.0,0.05362]
[1735726424691,0.002,93434.0,93433.0,0.053618]
[1735726425195,0.001,93434.0,93433.0,0.053618]
[1735726427399,0.003,93434.0,93433.0,0.053618]
[1735726430803,0.20730758,93443.0,93436.0,0.053616]
[1735726431009,0.20730758,93443.0,93437.0,0.0329]
[1735726431402,0.26092058,93443.0,93437.0,0.0329]
[1735726431807,0.053613,93443.0,93439.0,0.3608]
[1735726432810,0.054613,93443.0,93439.0,0.3608]
[1735726433006,0.001,93443.0,93439.0,0.3608]
[1735726433311,0.053613,93442.0,93439.0,0.3608]
[1735726434610,0.053614,93441.0,93439.0,0.3608]
[1735726435805,0.054614,93441.0,93439.0,0.3608]
[1735726436412,0.053614,93440.0,93439.0,0.3608]
[1735726437917,0.057614,93440.0,93439.0,0.3608]
[1735726439008,0.059614,93440.0,93439.0,0.3608]
[1735726439215,0.059614,93440.0,93439.0,0.3108]
[1735726441318,0.053621,93429.0,93428.0,0.3608]
[1735726443012,0.053621,93429.0,93428.0,0.3618]
[1735726443915,0.053621,93429.0,93428.0,0.3638]
[1735726444306,0.053621,93429.0,93428.0,0.3628]
[1735726444704,0.053621,93429.0,93428.0,0.3618]
[1735726450419,0.06549592,93429.0,93428.0,0.3618]
[1735726455124,0.06549592,93429.0,93428.0,0.3618]
[1735726458226,0.3608,93442.0,93428.0,0.3618]
[1735726458419,0.3608,93442.0,93437.0,0.053615]
[1735726458719,0.01232402,93443.0,93438.0,0.0919]
[1735726458924,0.053611,93447.0,93438.0,0.0919]
[1735726459129,0.053611,93447.0,93444.0,0.3608]
[1735726460435,0.060611,93447.0,93444.0,0.3608]
[1735726460727,0.053611,93445.0,93444.0,0.3608]
[1735726462136,0.056611,93445.0,93444.0,0.3608]